[Event "Titled Tuesday Blitz November 22 Early 2022"]
[White "Ciuffoletti, Paolo"]
[Black "Saravana, Krishnan P."]
[WhiteFideId "807630"]
[BlackFideId "5018382"]
[WhiteElo "2143"]
[BlackElo "2155"]
[Result "0-1"]
[Round "11"]
[TimeControl "180+1"]
[Date "2022.11.23"]
[WhiteClock "0:00:01"]
[BlackClock "0:00:38"]

1. e4 {[%clk 0:03:00]}  c5 {[%clk 0:02:54]} 2. d4 {[%clk 0:03:00]}  cxd4 {[%clk 0:02:54]} 3. c3 {[%clk 0:03:00]}  d3 {[%clk 0:02:54]} 4. Bxd3 {[%clk 0:02:59]}  Nc6 {[%clk 0:02:55]} 5. c4 {[%clk 0:02:59]}  g6 {[%clk 0:02:54]} 6. Nc3 {[%clk 0:02:59]}  Bg7 {[%clk 0:02:54]} 7. Nf3 {[%clk 0:02:59]}  d6 {[%clk 0:02:54]} 8. h3 {[%clk 0:02:57]}  Nf6 {[%clk 0:02:53]} 9. O-O {[%clk 0:02:57]}  O-O {[%clk 0:02:53]} 10. Be3 {[%clk 0:02:57]}  Nd7 {[%clk 0:02:53]} 11. Qd2 {[%clk 0:02:41]}  Nc5 {[%clk 0:02:52]} 12. Bc2 {[%clk 0:02:37]}  Be6 {[%clk 0:02:50]} 13. b3 {[%clk 0:02:27]}  Nb4 {[%clk 0:02:47]} 14. Bb1 {[%clk 0:02:16]}  a5 {[%clk 0:02:47]} 15. Nd4 {[%clk 0:02:03]}  Bd7 {[%clk 0:02:46]} 16. Nd5 {[%clk 0:01:15]}  Nc6 {[%clk 0:02:27]} 17. Bc2 {[%clk 0:01:06]}  e6 {[%clk 0:02:25]} 18. Nc3 {[%clk 0:01:01]}  Nb4 {[%clk 0:02:03]} 19. Rad1 {[%clk 0:00:55]}  Qb8 {[%clk 0:02:01]} 20. Ndb5 {[%clk 0:00:48]}  Bxb5 {[%clk 0:01:54]} 21. Nxb5 {[%clk 0:00:40]}  b6 {[%clk 0:01:38]} 22. Bb1 {[%clk 0:00:30]}  Rd8 {[%clk 0:01:34]} 23. Bg5 {[%clk 0:00:26]}  Rd7 {[%clk 0:01:31]} 24. Qf4 {[%clk 0:00:18]}  e5 {[%clk 0:01:27]} 25. Qg4 {[%clk 0:00:14]}  Ne6 {[%clk 0:01:26]} 26. Be3 {[%clk 0:00:11]}  Nc6 {[%clk 0:01:18]} 27. g3 {[%clk 0:00:07]}  Qd8 {[%clk 0:01:16]} 28. f4 {[%clk 0:00:06]}  Ned4 {[%clk 0:01:13]} 29. Nxd4 {[%clk 0:00:05]}  exd4 {[%clk 0:01:12]} 30. Bc1 {[%clk 0:00:04]}  h5 {[%clk 0:01:08]} 31. Qe2 {[%clk 0:00:03]}  h4 {[%clk 0:01:08]} 32. f5 {[%clk 0:00:03]}  hxg3 {[%clk 0:01:06]} 33. fxg6 {[%clk 0:00:03]}  fxg6 {[%clk 0:01:06]} 34. Qg4 {[%clk 0:00:03]}  Ne5 {[%clk 0:01:02]} 35. Qxg3 {[%clk 0:00:03]}  Qe7 {[%clk 0:00:55]} 36. Bf4 {[%clk 0:00:03]}  Qe6 {[%clk 0:00:49]} 37. Bc2 {[%clk 0:00:02]}  Rf8 {[%clk 0:00:48]} 38. Rde1 {[%clk 0:00:02]}  Rdf7 {[%clk 0:00:47]} 39. Bd1 {[%clk 0:00:02]}  d3 {[%clk 0:00:46]} 40. Bg4 {[%clk 0:00:02]}  Nxg4 {[%clk 0:00:45]} 41. hxg4 {[%clk 0:00:01]}  Bd4+ {[%clk 0:00:41]} 42. Kg2 {[%clk 0:00:01]}  g5 {[%clk 0:00:38]} 0-1


[Site "https://www.chess.com"]

[Event "Titled Tuesday Blitz November 22 Early 2022"]
[White "Dardha, Daniel"]
[Black "Svane, Rasmus"]
[WhiteFideId "240990"]
[BlackFideId "4657101"]
[WhiteElo "2528"]
[BlackElo "2674"]
[Result "1-0"]
[Round "11"]
[TimeControl "180+1"]
[Date "2022.11.22"]
[WhiteClock "0:00:16"]
[BlackClock "0:00:12"]

1. e4 {[%clk 0:02:57]}  c6 {[%clk 0:02:59]} 2. d4 {[%clk 0:02:56]}  d5 {[%clk 0:03:00]} 3. e5 {[%clk 0:02:55]}  Bf5 {[%clk 0:03:00]} 4. h4 {[%clk 0:02:55]}  h5 {[%clk 0:03:01]} 5. Bd3 {[%clk 0:02:53]}  Bxd3 {[%clk 0:03:01]} 6. Qxd3 {[%clk 0:02:53]}  Qa5+ {[%clk 0:03:02]} 7. b4 {[%clk 0:02:53]}  Qa6 {[%clk 0:03:01]} 8. Qf3 {[%clk 0:02:50]}  e6 {[%clk 0:03:01]} 9. c3 {[%clk 0:02:46]}  Qa4 {[%clk 0:03:02]} 10. Ne2 {[%clk 0:02:45]}  a6 {[%clk 0:03:02]} 11. O-O {[%clk 0:02:44]}  a5 {[%clk 0:03:02]} 12. bxa5 {[%clk 0:02:38]}  Nd7 {[%clk 0:03:03]} 13. Nd2 {[%clk 0:02:38]}  Rxa5 {[%clk 0:03:01]} 14. Nb3 {[%clk 0:02:37]}  Ra8 {[%clk 0:03:00]} 15. Bg5 {[%clk 0:02:37]}  b5 {[%clk 0:02:50]} 16. Nf4 {[%clk 0:02:35]}  g6 {[%clk 0:02:46]} 17. Qh3 {[%clk 0:02:33]}  Be7 {[%clk 0:02:43]} 18. Nxe6 {[%clk 0:02:34]}  fxe6 {[%clk 0:02:38]} 19. Qxe6 {[%clk 0:02:35]}  Nf8 {[%clk 0:02:13]} 20. Qxc6+ {[%clk 0:02:31]}  Kf7 {[%clk 0:02:13]} 21. Qxd5+ {[%clk 0:02:30]}  Ne6 {[%clk 0:02:12]} 22. f4 {[%clk 0:02:12]}  Rd8 {[%clk 0:02:10]} 23. Qf3 {[%clk 0:02:10]}  Ng7 {[%clk 0:02:00]} 24. d5 {[%clk 0:01:53]}  Nf5 {[%clk 0:01:56]} 25. d6 {[%clk 0:01:51]}  Bxg5 {[%clk 0:01:55]} 26. hxg5 {[%clk 0:01:45]}  Qa7+ {[%clk 0:01:49]} 27. Kh2 {[%clk 0:01:43]}  Ne3 {[%clk 0:01:25]} 28. Nd4 {[%clk 0:01:24]}  Nxf1+ {[%clk 0:01:19]} 29. Rxf1 {[%clk 0:01:25]}  Ne7 {[%clk 0:01:02]} 30. f5 {[%clk 0:01:06]}  Kg8 {[%clk 0:00:33]} 31. f6 {[%clk 0:00:52]}  Nf5 {[%clk 0:00:29]} 32. Nxf5 {[%clk 0:00:50]}  gxf5 {[%clk 0:00:29]} 33. Qxf5 {[%clk 0:00:51]}  Qd7 {[%clk 0:00:18]} 34. Qg6+ {[%clk 0:00:29]}  Kf8 {[%clk 0:00:19]} 35. e6 {[%clk 0:00:28]}  Qxd6+ {[%clk 0:00:17]} 36. Kh1 {[%clk 0:00:27]}  Rd7 {[%clk 0:00:10]} 37. e7+ {[%clk 0:00:19]}  Rxe7 {[%clk 0:00:11]} 38. fxe7+ {[%clk 0:00:20]}  Kxe7 {[%clk 0:00:12]} 39. Qg7+ {[%clk 0:00:16]} 1-0


[Site "https://www.chess.com"]

[Event "Titled Tuesday Blitz November 22 Early 2022"]
[White "Deac, Bogdan-Daniel"]
[Black "Seo, Jung Min"]
[WhiteFideId "1226380"]
[BlackFideId "1734687"]
[WhiteElo "2648"]
[BlackElo "2455"]
[Result "1-0"]
[Round "11"]
[TimeControl "180+1"]
[Date "2022.11.22"]
[WhiteClock "0:00:18"]
[BlackClock "0:01:21"]

1. Nf3 {[%clk 0:03:00]}  d5 {[%clk 0:02:59]} 2. e3 {[%clk 0:03:00]}  Nf6 {[%clk 0:02:59]} 3. c4 {[%clk 0:03:01]}  e6 {[%clk 0:02:57]} 4. Nc3 {[%clk 0:03:01]}  Be7 {[%clk 0:02:57]} 5. b3 {[%clk 0:02:58]}  O-O {[%clk 0:02:56]} 6. Bb2 {[%clk 0:02:59]}  c5 {[%clk 0:02:57]} 7. cxd5 {[%clk 0:02:54]}  exd5 {[%clk 0:02:56]} 8. d4 {[%clk 0:02:54]}  Nc6 {[%clk 0:02:56]} 9. Be2 {[%clk 0:02:50]}  Bg4 {[%clk 0:02:54]} 10. dxc5 {[%clk 0:02:48]}  Bxc5 {[%clk 0:02:54]} 11. O-O {[%clk 0:02:49]}  a6 {[%clk 0:02:55]} 12. Rc1 {[%clk 0:02:48]}  Ba7 {[%clk 0:02:55]} 13. Na4 {[%clk 0:02:11]}  Ne4 {[%clk 0:02:54]} 14. Nd4 {[%clk 0:02:00]}  Bxd4 {[%clk 0:02:50]} 15. Bxg4 {[%clk 0:01:55]}  Bxb2 {[%clk 0:02:51]} 16. Nxb2 {[%clk 0:01:56]}  Nf6 {[%clk 0:02:36]} 17. Bf3 {[%clk 0:01:52]}  Qa5 {[%clk 0:02:35]} 18. Nd3 {[%clk 0:01:42]}  Rad8 {[%clk 0:02:31]} 19. Qc2 {[%clk 0:01:31]}  h6 {[%clk 0:02:15]} 20. Nc5 {[%clk 0:01:15]}  Qb6 {[%clk 0:02:06]} 21. Nxb7 {[%clk 0:01:03]}  Nb4 {[%clk 0:02:01]} 22. Qc7 {[%clk 0:01:02]}  Qxc7 {[%clk 0:02:01]} 23. Rxc7 {[%clk 0:01:03]}  Rb8 {[%clk 0:01:56]} 24. a3 {[%clk 0:00:40]}  Nd3 {[%clk 0:01:55]} 25. Rc3 {[%clk 0:00:32]}  Nxf2 {[%clk 0:01:50]} 26. Nc5 {[%clk 0:00:29]}  N2e4 {[%clk 0:01:50]} 27. Nxe4 {[%clk 0:00:29]}  dxe4 {[%clk 0:01:49]} 28. Be2 {[%clk 0:00:28]}  Nd5 {[%clk 0:01:48]} 29. Rc5 {[%clk 0:00:28]}  Nxe3 {[%clk 0:01:48]} 30. Rb1 {[%clk 0:00:29]}  f5 {[%clk 0:01:41]} 31. Bxa6 {[%clk 0:00:25]}  f4 {[%clk 0:01:38]} 32. Re5 {[%clk 0:00:19]}  Rb7 {[%clk 0:01:21]} 33. Bxb7 {[%clk 0:00:18]} 1-0


[Site "https://www.chess.com"]

[Event "Titled Tuesday Blitz November 22 Early 2022"]
[White "Decuigniere, Tom"]
[Black "Heinemann, Josefine"]
[WhiteFideId "26093820"]
[BlackFideId "12900460"]
[WhiteElo "2252"]
[BlackElo "2300"]
[Result "1-0"]
[Round "11"]
[TimeControl "180+1"]
[Date "2022.11.23"]
[WhiteClock "0:00:09"]
[BlackClock "0:00:06"]

1. c4 {[%clk 0:03:00]}  Nf6 {[%clk 0:02:56]} 2. Nc3 {[%clk 0:03:00]}  c5 {[%clk 0:02:48]} 3. g3 {[%clk 0:03:00]}  Nc6 {[%clk 0:02:47]} 4. Bg2 {[%clk 0:03:00]}  g6 {[%clk 0:02:47]} 5. d3 {[%clk 0:03:00]}  Bg7 {[%clk 0:02:48]} 6. Bf4 {[%clk 0:03:01]}  O-O {[%clk 0:02:48]} 7. Qd2 {[%clk 0:03:02]}  d6 {[%clk 0:02:44]} 8. Bh6 {[%clk 0:03:02]}  e6 {[%clk 0:02:27]} 9. h4 {[%clk 0:02:58]}  Nd4 {[%clk 0:02:15]} 10. Bxg7 {[%clk 0:02:56]}  Kxg7 {[%clk 0:02:15]} 11. e3 {[%clk 0:02:55]}  Nc6 {[%clk 0:02:13]} 12. Nge2 {[%clk 0:02:54]}  d5 {[%clk 0:02:12]} 13. cxd5 {[%clk 0:02:53]}  exd5 {[%clk 0:02:11]} 14. d4 {[%clk 0:02:51]}  Bg4 {[%clk 0:02:07]} 15. dxc5 {[%clk 0:02:44]}  Qa5 {[%clk 0:01:52]} 16. O-O {[%clk 0:02:25]}  Qxc5 {[%clk 0:01:50]} 17. Nf4 {[%clk 0:02:19]}  Rad8 {[%clk 0:01:50]} 18. Rac1 {[%clk 0:02:18]}  d4 {[%clk 0:01:41]} 19. Ncd5 {[%clk 0:01:46]}  Qd6 {[%clk 0:01:35]} 20. exd4 {[%clk 0:01:40]}  Be6 {[%clk 0:01:12]} 21. Nxf6 {[%clk 0:01:29]}  Kxf6 {[%clk 0:01:11]} 22. d5 {[%clk 0:01:26]}  Ne5 {[%clk 0:00:56]} 23. Nxe6 {[%clk 0:00:50]}  fxe6 {[%clk 0:00:54]} 24. Qg5+ {[%clk 0:00:50]}  Kg7 {[%clk 0:00:52]} 25. dxe6 {[%clk 0:00:34]}  Qxe6 {[%clk 0:00:44]} 26. Rc7+ {[%clk 0:00:34]}  Nf7 {[%clk 0:00:30]} 27. Qe3 {[%clk 0:00:24]}  Qxa2 {[%clk 0:00:23]} 28. Qc3+ {[%clk 0:00:18]}  Kg8 {[%clk 0:00:22]} 29. Rxb7 {[%clk 0:00:16]}  Rb8 {[%clk 0:00:22]} 30. Rxb8 {[%clk 0:00:14]}  Rxb8 {[%clk 0:00:23]} 31. h5 {[%clk 0:00:14]}  Qxb2 {[%clk 0:00:20]} 32. Qc4 {[%clk 0:00:12]}  Qb4 {[%clk 0:00:17]} 33. Qe6 {[%clk 0:00:11]}  Qb6 {[%clk 0:00:16]} 34. Qg4 {[%clk 0:00:09]}  Kg7 {[%clk 0:00:15]} 35. hxg6 {[%clk 0:00:09]}  Qxg6 {[%clk 0:00:13]} 36. Qd4+ {[%clk 0:00:09]}  Qf6 {[%clk 0:00:13]} 37. Qxa7 {[%clk 0:00:10]}  Re8 {[%clk 0:00:12]} 38. Rc1 {[%clk 0:00:07]}  Re7 {[%clk 0:00:12]} 39. Qc5 {[%clk 0:00:05]}  Re5 {[%clk 0:00:11]} 40. Qc3 {[%clk 0:00:05]}  Rf5 {[%clk 0:00:10]} 41. Qxf6+ {[%clk 0:00:03]}  Rxf6 {[%clk 0:00:11]} 42. f4 {[%clk 0:00:03]}  h6 {[%clk 0:00:11]} 43. Rc7 {[%clk 0:00:04]}  Rd6 {[%clk 0:00:10]} 44. Bf1 {[%clk 0:00:04]}  Kf6 {[%clk 0:00:10]} 45. Bc4 {[%clk 0:00:04]}  Nd8 {[%clk 0:00:10]} 46. Kg2 {[%clk 0:00:03]}  Ne6 {[%clk 0:00:09]} 47. Bxe6 {[%clk 0:00:03]}  Rxe6 {[%clk 0:00:10]} 48. Rh7 {[%clk 0:00:03]}  Kg6 {[%clk 0:00:10]} 49. Ra7 {[%clk 0:00:04]}  Rc6 {[%clk 0:00:09]} 50. Kf3 {[%clk 0:00:04]}  h5 {[%clk 0:00:09]} 51. Kg2 {[%clk 0:00:04]}  Rb6 {[%clk 0:00:09]} 52. Kh3 {[%clk 0:00:04]}  Rb1 {[%clk 0:00:07]} 53. Ra6+ {[%clk 0:00:04]}  Kf5 {[%clk 0:00:07]} 54. Rh6 {[%clk 0:00:03]}  Rh1+ {[%clk 0:00:04]} 55. Kg2 {[%clk 0:00:03]}  Rb1 {[%clk 0:00:05]} 56. Rxh5+ {[%clk 0:00:04]}  Kg6 {[%clk 0:00:06]} 57. Rg5+ {[%clk 0:00:05]}  Kf6 {[%clk 0:00:06]} 58. Kh3 {[%clk 0:00:05]}  Rh1+ {[%clk 0:00:06]} 59. Kg4 {[%clk 0:00:06]}  Rb1 {[%clk 0:00:06]} 60. Rf5+ {[%clk 0:00:07]}  Kg6 {[%clk 0:00:06]} 61. Ra5 {[%clk 0:00:08]}  Kf6 {[%clk 0:00:06]} 62. Ra6+ {[%clk 0:00:08]}  Kg7 {[%clk 0:00:07]} 63. f5 {[%clk 0:00:08]}  Rb3 {[%clk 0:00:06]} 64. Kf4 {[%clk 0:00:08]}  Kf7 {[%clk 0:00:06]} 65. g4 {[%clk 0:00:08]}  Rb4+ {[%clk 0:00:06]} 66. Kg5 {[%clk 0:00:09]}  Kg7 {[%clk 0:00:06]} 67. Ra7+ {[%clk 0:00:09]} 1-0


[Site "https://www.chess.com"]

[Event "Titled Tuesday Blitz November 22 Early 2022"]
[White "Durarbayli, Vasif"]
[Black "Bortnyk, Olexandr"]
[WhiteFideId "13402935"]
[BlackFideId "14120828"]
[WhiteElo "2586"]
[BlackElo "2723"]
[Result "0-1"]
[Round "11"]
[TimeControl "180+1"]
[Date "2022.11.22"]
[WhiteClock "0:00:01"]
[BlackClock "0:00:06"]

1. e4 {[%clk 0:03:00]}  Nf6 {[%clk 0:01:22]} 2. e5 {[%clk 0:02:59]}  Nd5 {[%clk 0:01:20]} 3. d4 {[%clk 0:02:55]}  d6 {[%clk 0:01:21]} 4. c4 {[%clk 0:02:55]}  Nb6 {[%clk 0:01:21]} 5. exd6 {[%clk 0:02:56]}  exd6 {[%clk 0:01:21]} 6. Nc3 {[%clk 0:02:57]}  Be7 {[%clk 0:01:22]} 7. Bd3 {[%clk 0:02:57]}  O-O {[%clk 0:01:22]} 8. Nge2 {[%clk 0:02:58]}  c6 {[%clk 0:01:22]} 9. O-O {[%clk 0:02:42]}  Na6 {[%clk 0:01:23]} 10. a3 {[%clk 0:02:28]}  d5 {[%clk 0:01:23]} 11. c5 {[%clk 0:02:29]}  Nd7 {[%clk 0:01:23]} 12. b4 {[%clk 0:02:29]}  Nc7 {[%clk 0:01:23]} 13. Qc2 {[%clk 0:02:20]}  g6 {[%clk 0:01:23]} 14. Rb1 {[%clk 0:02:20]}  Bf6 {[%clk 0:01:22]} 15. a4 {[%clk 0:02:18]}  a6 {[%clk 0:01:20]} 16. b5 {[%clk 0:02:12]}  axb5 {[%clk 0:01:21]} 17. axb5 {[%clk 0:02:13]}  Ne6 {[%clk 0:01:21]} 18. Be3 {[%clk 0:02:08]}  Re8 {[%clk 0:01:17]} 19. Rfd1 {[%clk 0:02:00]}  Bg5 {[%clk 0:01:13]} 20. Qd2 {[%clk 0:01:32]}  Bxe3 {[%clk 0:01:06]} 21. fxe3 {[%clk 0:01:33]}  Qg5 {[%clk 0:01:02]} 22. e4 {[%clk 0:01:31]}  Qxd2 {[%clk 0:00:57]} 23. Rxd2 {[%clk 0:01:31]}  dxe4 {[%clk 0:00:44]} 24. Nxe4 {[%clk 0:01:32]}  Kg7 {[%clk 0:00:44]} 25. Nd6 {[%clk 0:01:25]}  Re7 {[%clk 0:00:42]} 26. Bc4 {[%clk 0:01:15]}  Nf6 {[%clk 0:00:40]} 27. Ng3 {[%clk 0:01:08]}  Nc7 {[%clk 0:00:25]} 28. b6 {[%clk 0:01:01]}  Ncd5 {[%clk 0:00:23]} 29. Rf2 {[%clk 0:01:01]}  Be6 {[%clk 0:00:22]} 30. Re1 {[%clk 0:00:46]}  Rd7 {[%clk 0:00:19]} 31. h3 {[%clk 0:00:43]}  Ra4 {[%clk 0:00:16]} 32. Rc1 {[%clk 0:00:28]}  Nxb6 {[%clk 0:00:11]} 33. Bxe6 {[%clk 0:00:26]}  fxe6 {[%clk 0:00:12]} 34. Rxf6 {[%clk 0:00:26]}  Kxf6 {[%clk 0:00:13]} 35. Nge4+ {[%clk 0:00:11]}  Kg7 {[%clk 0:00:09]} 36. cxb6 {[%clk 0:00:04]}  Rxd4 {[%clk 0:00:10]} 37. Ne8+ {[%clk 0:00:01]}  Kh6 {[%clk 0:00:06]} 0-1


[Site "https://www.chess.com"]

[Event "Titled Tuesday Blitz November 22 Early 2022"]
[White "Ezat, Mohamed"]
[Black "Fiol, Fabrice"]
[WhiteFideId "10600906"]
[BlackFideId "611670"]
[WhiteElo "2386"]
[BlackElo "2460"]
[Result "1-0"]
[Round "11"]
[TimeControl "180+1"]
[Date "2022.11.23"]
[WhiteClock "0:01:19"]
[BlackClock "0:01:17"]

1. e4 {[%clk 0:02:58]}  c5 {[%clk 0:03:00]} 2. d4 {[%clk 0:02:48]}  cxd4 {[%clk 0:02:59]} 3. c3 {[%clk 0:02:48]}  Nf6 {[%clk 0:02:59]} 4. e5 {[%clk 0:02:48]}  Nd5 {[%clk 0:02:59]} 5. Bc4 {[%clk 0:02:48]}  Nb6 {[%clk 0:02:59]} 6. Bb3 {[%clk 0:02:48]}  Nc6 {[%clk 0:02:59]} 7. Nf3 {[%clk 0:02:49]}  g6 {[%clk 0:02:59]} 8. cxd4 {[%clk 0:02:45]}  Bg7 {[%clk 0:02:59]} 9. h4 {[%clk 0:02:42]}  d6 {[%clk 0:02:59]} 10. h5 {[%clk 0:02:32]}  Bg4 {[%clk 0:02:37]} 11. h6 {[%clk 0:02:29]}  Bf8 {[%clk 0:02:35]} 12. Bxf7+ {[%clk 0:02:25]}  Kxf7 {[%clk 0:02:36]} 13. Ng5+ {[%clk 0:02:23]}  Kg8 {[%clk 0:02:36]} 14. Qxg4 {[%clk 0:02:24]}  Qc8 {[%clk 0:02:25]} 15. e6 {[%clk 0:02:21]}  Nd5 {[%clk 0:02:23]} 16. Nc3 {[%clk 0:01:43]}  Nf6 {[%clk 0:02:18]} 17. Qd1 {[%clk 0:01:43]}  d5 {[%clk 0:01:55]} 18. Bf4 {[%clk 0:01:32]}  Nd8 {[%clk 0:01:54]} 19. Qe2 {[%clk 0:01:29]}  Qc4 {[%clk 0:01:46]} 20. Qxc4 {[%clk 0:01:29]}  dxc4 {[%clk 0:01:46]} 21. d5 {[%clk 0:01:30]}  Nh5 {[%clk 0:01:41]} 22. Rxh5 {[%clk 0:01:28]}  gxh5 {[%clk 0:01:41]} 23. Nge4 {[%clk 0:01:25]}  Rc8 {[%clk 0:01:30]} 24. Ke2 {[%clk 0:01:20]}  a6 {[%clk 0:01:27]} 25. Rh1 {[%clk 0:01:19]}  b5 {[%clk 0:01:27]} 26. Rxh5 {[%clk 0:01:19]}  Bxh6 {[%clk 0:01:17]} 27. Bxh6 {[%clk 0:01:19]} 1-0


[Site "https://www.chess.com"]

[Event "Titled Tuesday Blitz November 22 Early 2022"]
[White "Fernandez Garcia, Gumersindo"]
[Black "Izuzquiza Gonzalez, Javier"]
[WhiteFideId "24516740"]
[BlackFideId "3101029"]
[WhiteElo "2140"]
[BlackElo "2034"]
[Result "1-0"]
[Round "11"]
[TimeControl "180+1"]
[Date "2022.11.23"]
[WhiteClock "0:01:10"]
[BlackClock "0:00:23"]

1. e4 {[%clk 0:03:00]}  c5 {[%clk 0:02:59]} 2. c3 {[%clk 0:03:00]}  Nf6 {[%clk 0:02:59]} 3. e5 {[%clk 0:03:00]}  Nd5 {[%clk 0:02:59]} 4. d4 {[%clk 0:03:00]}  cxd4 {[%clk 0:03:00]} 5. cxd4 {[%clk 0:03:01]}  e6 {[%clk 0:03:00]} 6. Nf3 {[%clk 0:03:02]}  d6 {[%clk 0:03:00]} 7. Bc4 {[%clk 0:02:57]}  Be7 {[%clk 0:02:59]} 8. O-O {[%clk 0:02:55]}  O-O {[%clk 0:02:57]} 9. Re1 {[%clk 0:02:52]}  Nc6 {[%clk 0:02:56]} 10. h3 {[%clk 0:02:49]}  Bd7 {[%clk 0:02:55]} 11. Bxd5 {[%clk 0:02:33]}  exd5 {[%clk 0:02:55]} 12. Nc3 {[%clk 0:02:32]}  Be6 {[%clk 0:02:51]} 13. Bf4 {[%clk 0:02:31]}  Rc8 {[%clk 0:02:43]} 14. Qb3 {[%clk 0:02:27]}  Na5 {[%clk 0:02:41]} 15. Qb5 {[%clk 0:02:23]}  a6 {[%clk 0:02:32]} 16. Qe2 {[%clk 0:02:14]}  Nc4 {[%clk 0:02:27]} 17. exd6 {[%clk 0:02:14]}  Bxd6 {[%clk 0:02:26]} 18. Bxd6 {[%clk 0:02:14]}  Qxd6 {[%clk 0:02:24]} 19. Ng5 {[%clk 0:02:14]}  Rfe8 {[%clk 0:02:10]} 20. Rac1 {[%clk 0:01:59]}  Qf4 {[%clk 0:01:52]} 21. Qh5 {[%clk 0:01:43]}  h6 {[%clk 0:01:38]} 22. Nxe6 {[%clk 0:01:39]}  fxe6 {[%clk 0:00:58]} 23. Nxd5 {[%clk 0:01:35]}  Qxd4 {[%clk 0:00:52]} 24. Nc7 {[%clk 0:01:29]}  Rf8 {[%clk 0:00:41]} 25. Nxe6 {[%clk 0:01:21]}  Qxf2+ {[%clk 0:00:40]} 26. Kh1 {[%clk 0:01:21]}  Rf5 {[%clk 0:00:31]} 27. Qg4 {[%clk 0:01:13]}  Rg5 {[%clk 0:00:28]} 28. Nxg5 {[%clk 0:01:11]}  hxg5 {[%clk 0:00:23]} 29. Qxc8+ {[%clk 0:01:10]} 1-0


[Site "https://www.chess.com"]

[Event "Titled Tuesday Blitz November 22 Early 2022"]
[White "Ferreira, Vitor Hugo Vieira"]
[Black "Buscar, Michael"]
[WhiteFideId "2119765"]
[BlackFideId "2603616"]
[WhiteElo "2168"]
[BlackElo "2010"]
[Result "0-1"]
[Round "11"]
[TimeControl "180+1"]
[Date "2022.11.23"]
[WhiteClock "0:01:57"]
[BlackClock "0:01:34"]

1. e4 {[%clk 0:02:57]}  c5 {[%clk 0:02:57]} 2. Nf3 {[%clk 0:02:55]}  Nc6 {[%clk 0:02:57]} 3. d4 {[%clk 0:02:55]}  cxd4 {[%clk 0:02:57]} 4. Nxd4 {[%clk 0:02:55]}  Nf6 {[%clk 0:02:57]} 5. Nc3 {[%clk 0:02:47]}  e5 {[%clk 0:02:57]} 6. Ndb5 {[%clk 0:02:48]}  h6 {[%clk 0:02:57]} 7. Bc4 {[%clk 0:02:44]}  a6 {[%clk 0:02:50]} 8. Nd6+ {[%clk 0:02:44]}  Bxd6 {[%clk 0:02:50]} 9. Qxd6 {[%clk 0:02:44]}  Qe7 {[%clk 0:02:51]} 10. Qd1 {[%clk 0:02:43]}  b5 {[%clk 0:02:47]} 11. Bb3 {[%clk 0:02:42]}  b4 {[%clk 0:02:46]} 12. Nd5 {[%clk 0:02:42]}  Nxd5 {[%clk 0:02:43]} 13. exd5 {[%clk 0:02:42]}  Nd4 {[%clk 0:02:43]} 14. Bc4 {[%clk 0:02:39]}  Qc5 {[%clk 0:02:36]} 15. Qd3 {[%clk 0:02:37]}  O-O {[%clk 0:02:29]} 16. Be3 {[%clk 0:02:37]}  Bb7 {[%clk 0:02:26]} 17. c3 {[%clk 0:02:35]}  Rac8 {[%clk 0:02:15]} 18. cxd4 {[%clk 0:02:32]}  Qxc4 {[%clk 0:02:15]} 19. Qxc4 {[%clk 0:02:31]}  Rxc4 {[%clk 0:02:15]} 20. dxe5 {[%clk 0:02:32]}  Bxd5 {[%clk 0:02:16]} 21. O-O {[%clk 0:02:31]}  Rfc8 {[%clk 0:02:11]} 22. a3 {[%clk 0:02:29]}  b3 {[%clk 0:02:09]} 23. Rfc1 {[%clk 0:02:29]}  Rc2 {[%clk 0:02:08]} 24. Rxc2 {[%clk 0:02:29]}  bxc2 {[%clk 0:02:06]} 25. Rc1 {[%clk 0:02:27]}  Bb3 {[%clk 0:02:06]} 26. f3 {[%clk 0:02:25]}  a5 {[%clk 0:02:00]} 27. Kf2 {[%clk 0:02:25]}  a4 {[%clk 0:02:00]} 28. Ke2 {[%clk 0:02:25]}  Rc6 {[%clk 0:01:54]} 29. Bd2 {[%clk 0:02:21]}  d6 {[%clk 0:01:52]} 30. f4 {[%clk 0:02:06]}  dxe5 {[%clk 0:01:49]} 31. fxe5 {[%clk 0:02:06]}  Rc5 {[%clk 0:01:49]} 32. Bc3 {[%clk 0:02:05]}  Rd5 {[%clk 0:01:49]} 33. Ke3 {[%clk 0:02:01]}  Rd1 {[%clk 0:01:47]} 34. Bd2 {[%clk 0:02:02]}  Kf8 {[%clk 0:01:47]} 35. Kd3 {[%clk 0:02:02]}  Ke7 {[%clk 0:01:45]} 36. Rxc2 {[%clk 0:02:02]}  Bxc2+ {[%clk 0:01:45]} 37. Kxc2 {[%clk 0:02:03]}  Rg1 {[%clk 0:01:44]} 38. g3 {[%clk 0:02:02]}  Rg2 {[%clk 0:01:43]} 39. Kc3 {[%clk 0:02:01]}  Rxh2 {[%clk 0:01:42]} 40. Be3 {[%clk 0:01:58]}  Ke6 {[%clk 0:01:41]} 41. b3 {[%clk 0:01:56]}  axb3 {[%clk 0:01:41]} 42. Kxb3 {[%clk 0:01:56]}  Kxe5 {[%clk 0:01:41]} 43. a4 {[%clk 0:01:56]}  Ke4 {[%clk 0:01:39]} 44. Bf4 {[%clk 0:01:55]}  g5 {[%clk 0:01:39]} 45. Bc7 {[%clk 0:01:55]}  Rh1 {[%clk 0:01:35]} 46. a5 {[%clk 0:01:55]}  Ra1 {[%clk 0:01:34]} 47. Kc4 {[%clk 0:01:55]}  Rc1+ {[%clk 0:01:33]} 48. Kb5 {[%clk 0:01:55]}  Rxc7 {[%clk 0:01:33]} 49. Kb6 {[%clk 0:01:55]}  Re7 {[%clk 0:01:33]} 50. a6 {[%clk 0:01:56]}  Kf3 {[%clk 0:01:34]} 51. a7 {[%clk 0:01:57]}  Rxa7 {[%clk 0:01:34]} 52. Kxa7 {[%clk 0:01:57]}  Kxg3 {[%clk 0:01:34]} 0-1


[Site "https://www.chess.com"]